[Event "VI Sunway Sitges Open 2019"]
[Site "Sitges"]
[Date "2019.12.19"]
[Round "7.48"]
[White "Minko, Dmitry"]
[Black "Davtyan, David Arm."]
[Result "0-1"]
[ECO "B33"]
[WhiteElo "2147"]
[BlackElo "2327"]
[Annotator "NA"]
[PlyCount "58"]
[EventDate "2019.12.13"]
[EventType "swiss"]
[EventCountry "ESP"]
[SourceTitle "playchess.com"]
[Source "ChessBase"]
[SourceQuality "1"]
[TimeControl "40/5400+30:1800+30"]

1. e4 {[%emt 0:00:00]} c5 {[%emt 0:00:45]} 2. Nf3 {[%emt 0:00:00]} Nc6 {[%emt 0:00:51]} 3. d4 {[%emt 0:00:10]} cxd4 {[%emt 0:00:04]} 4. Nxd4 {[%emt 0:00:18]} Nf6 {[%emt 0:00:33]} 5. Nc3 {[%emt 0:00:14]} e5 {[%emt 0:00:24]} 6. Ndb5 {[%emt 0:00:29]} d6 {[%emt 0:00:07]} 7. a4 {[%emt 0:01:13]} a6 {[%emt 0:00:44]} 8. Na3 {[%emt 0:00:00]} Bg4 {[%emt 0:00:05]} 9. Be2 {[%emt 0:00:00]} Bxe2 {[%emt 0:00:05]} 10. Qxe2 {[%emt 0:00:00]} d5 {[%emt 0:00:02]} 11. exd5 {[%emt 0:01:06]} Nxd5 {[%emt 0:00:08]} 12. O-O {[%emt 0:04:02]} Nxc3 {[%emt 0:00:04]} 13. bxc3 {[%emt 0:00:07]} Bc5 {[%emt 0:00:08]} 14. Nc4 {[%emt 0:05:30]} Qe7 {[%emt 0:00:05]} 15. a5 {[%emt 0:06:55]} O-O {[%emt 0:03:29]} 16. Be3 {[%emt 0:06:47]} Bxe3 {[%emt 0:01:21]} 17. Qxe3 {[%emt 0:00:42]} Rad8 {[%emt 0:08:42]} 18. Rfd1 {[%emt 0:23:11]} f5 {[%emt 0:14:21]} 19. Qb6 {[%emt 0:07:48]} f4 {[%emt 0:03:35]} 20. f3 {[%emt 0:00:57]} e4 {[%emt 0:04:38]} 21. fxe4 {[%emt 0:01:48]} Rxd1+ {[%emt 0:07:19]} 22. Rxd1 {[%emt 0:00:08]} Qxe4 {[%emt 0:01:44]} 23. Qb3 {[%emt 0:01:46]} Kh8 {[%emt 0:01:52]} 24. Nd6 {[%emt 0:08:47]} Qe3+ {[%emt 0:00:22]} 25. Kh1 {[%emt 0:00:32]} Qe2 {[%emt 0:04:05]} 26. Qd5 {[%emt 0:07:37]} Ne5 {[%emt 0:02:22]} 27. Rg1 {[%emt 0:01:46]} h6 {[%emt 0:04:20]} 28. Qxb7 {[%emt 0:07:21]} Qh5 {[%emt 0:07:49]} 29. Qd5 {[%emt 0:03:20]} Ng4 {[%emt 0:01:00]} 0-1

[Event "VI Sunway Sitges Open 2019"]
[Site "Sitges"]
[Date "2019.12.19"]
[Round "7.49"]
[White "Kamalidenova, Meruert"]
[Black "Ortega Ruiz, Jose Miguel"]
[Result "1/2-1/2"]
[ECO "E01"]
[WhiteElo "2019"]
[BlackElo "2292"]
[Annotator "NA"]
[PlyCount "142"]
[EventDate "2019.12.13"]
[EventType "swiss"]
[EventCountry "ESP"]
[SourceTitle "playchess.com"]
[Source "ChessBase"]
[SourceQuality "1"]
[TimeControl "40/5400+30:1800+30"]

1. d4 {[%emt 0:00:04]} Nf6 {[%emt 0:00:06]} 2. c4 {[%emt 0:00:06]} e6 {[%emt 0:00:13]} 3. Nf3 {[%emt 0:00:34]} c5 {[%emt 0:00:07]} 4. g3 {[%emt 0:00:43]} cxd4 {[%emt 0:00:06]} 5. Nxd4 {[%emt 0:00:09]} d5 {[%emt 0:00:08]} 6. Bg2 {[%emt 0:01:02]} e5 {[%emt 0:00:05]} 7. Nf3 {[%emt 0:01:07]} d4 {[%emt 0:00:15]} 8. O-O {[%emt 0:00:46]} Nc6 {[%emt 0:00:03]} 9. e3 {[%emt 0:01:14]} Be7 {[%emt 0:10:04]} 10. exd4 {[%emt 0:01:12]} exd4 {[%emt 0:01:39]} 11. Bf4 {[%emt 0:01:40]} O-O {[%emt 0:00:45]} 12. Nbd2 {[%emt 0:01:08]} Nh5 {[%emt 0:00:54]} 13. Nxd4 {[%emt 0:04:34]} Nxf4 {[%emt 0:00:08]} 14. Nxc6 {[%emt 0:00:06]} bxc6 {[%emt 0:00:04]} 15. gxf4 {[%emt 0:00:10]} Qd6 {[%emt 0:07:12]} 16. Ne4 {[%emt 0:04:49]} Qxf4 {[%emt 0:00:29]} 17. Qf3 {[%emt 0:00:23]} Qxf3 {[%emt 0:10:00]} 18. Bxf3 {[%emt 0:00:07]} Be6 {[%emt 0:00:14]} 19. b3 {[%emt 0:01:15]} a5 {[%emt 0:05:29]} 20. Rad1 {[%emt 0:01:24]} a4 {[%emt 0:00:56]} 21. Nd6 {[%emt 0:04:08]} axb3 {[%emt 0:01:24]} 22. axb3 {[%emt 0:00:35]} Ra3 {[%emt 0:00:03]} 23. c5 {[%emt 0:02:43]} Ra6 {[%emt 0:24:05]} 24. b4 {[%emt 0:04:33]} g6 {[%emt 0:01:39]} 25. Ra1 {[%emt 0:02:35]} Rfa8 {[%emt 0:00:12]} 26. Rxa6 {[%emt 0:01:53]} Rxa6 {[%emt 0:00:04]} 27. Nb7 {[%emt 0:03:04]} h5 {[%emt 0:02:14]} 28. Rc1 {[%emt 0:04:40]} Kf8 {[%emt 0:07:33]} 29. Na5 {[%emt 0:01:22]} Bd7 {[%emt 0:00:03]} 30. Rd1 {[%emt 0:02:52]} Ke8 {[%emt 0:00:15]} 31. Nc4 {[%emt 0:00:21]} Bg4 {[%emt 0:04:41]} 32. Bxg4 {[%emt 0:01:38]} hxg4 {[%emt 0:00:01]} 33. Ne5 {[%emt 0:00:09]} Bf6 {[%emt 0:00:01]} 34. Nxg4 {[%emt 0:01:24]} Bc3 {[%emt 0:00:03]} 35. Rd6 {[%emt 0:03:49]} Bxb4 {[%emt 0:00:21]} 36. Nf6+ {[%emt 0:00:22]} Kf8 {[%emt 0:00:08]} 37. Nd7+ {[%emt 0:00:50]} Ke7 {[%emt 0:01:46]} 38. Ne5 {[%emt 0:05:24]} Bxc5 {[%emt 0:01:35]} 39. Rxc6 {[%emt 0:00:14]} Ra1+ {[%emt 0:01:47]} 40. Kg2 {[%emt 0:00:15]} Bd4 {[%emt 0:00:29]} 41. Nf3 {[%emt 0:01:27]} Ba7 {[%emt 0:00:06]} 42. Rc2 {[%emt 0:01:42]} Kf6 {[%emt 0:00:07]} 43. h3 {[%emt 0:00:23]} Kf5 {[%emt 0:00:27]} 44. Rb2 {[%emt 0:00:32]} Kf6 {[%emt 0:00:22]} 45. Rc2 {[%emt 0:00:51]} Kg7 {[%emt 0:00:06]} 46. Ne5 {[%emt 0:01:09]} Bd4 {[%emt 0:00:33]} 47. Nf3 {[%emt 0:00:10]} Bf6 {[%emt 0:00:05]} 48. Rd2 {[%emt 0:00:13]} Ra3 {[%emt 0:00:28]} 49. Rc2 {[%emt 0:00:15]} g5 {[%emt 0:00:11]} 50. Rd2 {[%emt 0:00:47]} Kg6 {[%emt 0:00:04]} 51. Rc2 {[%emt 0:00:17]} Ra6 {[%emt 0:00:50]} 52. Re2 {[%emt 0:00:17]} Ra5 {[%emt 0:00:28]} 53. Rd2 {[%emt 0:01:05]} Bg7 {[%emt 0:00:10]} 54. Rc2 {[%emt 0:00:31]} f5 {[%emt 0:00:08]} 55. Rd2 {[%emt 0:00:50]} Bf6 {[%emt 0:00:04]} 56. Rc2 {[%emt 0:00:14]} Be7 {[%emt 0:01:56]} 57. Re2 {[%emt 0:00:24]} Bf6 {[%emt 0:01:10]} 58. Rc2 {[%emt 0:00:12]} Ra6 {[%emt 0:00:07]} 59. Re2 {[%emt 0:00:16]} Rd6 {[%emt 0:00:21]} 60. Rc2 {[%emt 0:00:26]} Re6 {[%emt 0:00:46]} 61. Rd2 {[%emt 0:00:34]} Be7 {[%emt 0:00:05]} 62. Rc2 {[%emt 0:00:13]} Bb4 {[%emt 0:00:07]} 63. Nd4 {[%emt 0:01:18]} Rd6 {[%emt 0:01:18]} 64. Rc6 {[%emt 0:00:18]} Rxc6 {[%emt 0:00:03]} 65. Nxc6 {[%emt 0:00:05]} Bc3 {[%emt 0:00:01]} 66. Ne7+ {[%emt 0:00:09]} Kh5 {[%emt 0:00:19]} 67. Nxf5 {[%emt 0:00:06]} Bd2 {[%emt 0:00:09]} 68. Ng3+ {[%emt 0:01:26]} Kh4 {[%emt 0:00:15]} 69. Nf5+ {[%emt 0:01:31]} Kh5 {[%emt 0:00:03]} 70. Nd4 {[%emt 0:00:46]} g4 {[%emt 0:00:35]} 71. hxg4+ {[%emt 0:01:57]} Kxg4 {[%emt 0:00:04]} 1/2-1/2

[Event "VI Sunway Sitges Open 2019"]
[Site "Sitges"]
[Date "2019.12.19"]
[Round "7.50"]
[White "Schut, Han"]
[Black "Vanduyfhuys, Daria"]
[Result "1/2-1/2"]
[ECO "B33"]
[WhiteElo "2169"]
[BlackElo "1973"]
[Annotator "ChessBase"]
[PlyCount "98"]
[EventDate "2019.12.13"]
[EventType "swiss"]
[EventCountry "ESP"]
[SourceTitle "playchess.com"]
[Source "ChessBase"]
[SourceQuality "1"]
[TimeControl "40/5400+30:1800+30"]

1. e4 {[%emt 0:08:46]} c5 {[%emt 0:00:08]} 2. Nf3 {[%emt 0:00:05]} Nc6 {[%emt 0:00:07]} 3. Nc3 {[%emt 0:00:14]} Nf6 {[%emt 0:02:01]} 4. d4 {[%emt 0:00:31]} cxd4 {[%emt 0:00:07]} 5. Nxd4 {[%emt 0:00:01]} e5 {[%emt 0:00:09]} 6. Ndb5 {[%emt 0:00:05]} d6 {[%emt 0:00:04]} 7. Nd5 {[%emt 0:00:06]} Nxd5 {[%emt 0:00:06]} 8. exd5 {[%emt 0:00:05]} Ne7 {[%emt 0:00:41]} 9. c4 {[%emt 0:02:42]} Ng6 {[%emt 0:04:08]} 10. Qa4 {[%emt 0:06:01]} Bd7 {[%emt 0:03:24]} 11. Qb4 {[%emt 0:00:05]} Qb8 {[%emt 0:03:55]} 12. h4 {[%emt 0:00:50]} a6 {[%emt 0:02:27]} 13. Nc3 {[%emt 0:00:32]} h5 {[%emt 0:02:24]} 14. g3 {[%emt 0:04:05]} Be7 {[%emt 0:01:12]} 15. Be2 {[%emt 0:00:13]} Nf8 {[%emt 0:08:07]} 16. Be3 {[%emt 0:04:44]} g6 {[%emt 0:01:05]} 17. f4 {[%emt 0:11:51]} exf4 {[%emt 0:05:27]} 18. Bxf4 {[%emt 0:00:18]} Bf5 {[%emt 0:00:22]} 19. O-O {[%emt 0:26:35]} Nd7 {[%emt 0:01:01]} 20. Rae1 {[%emt 0:00:15]} Ne5 {[%emt 0:24:49]} 21. Qa4+ {[%emt 0:08:15]} b5 {[%emt 0:09:16]} 22. cxb5 {[%emt 0:01:19]} O-O {[%emt 0:00:08]} 23. Qb4 {[%emt 0:06:55]} Bd8 {[%emt 0:08:04]} 24. Kh2 {[%emt 0:09:07]} Re8 {[%emt 0:03:05]} 25. a4 {[%emt 0:01:20]} axb5 {[%emt 0:00:56]} 26. Bxe5 {[%emt 0:00:49]} Rxe5 {[%emt 0:05:50]} 27. Bxb5 {[%emt 0:00:21]} Bd3 {[%emt 0:04:08]} 28. Rxe5 {[%emt 0:03:27]} dxe5 {[%emt 0:00:03]} 29. Rd1 {[%emt 0:00:24]} Qb6 {[%emt 0:04:34]} 30. Kg2 {[%emt 0:02:00]} Bf5 {[%emt 0:02:42]} 31. Qc4 {[%emt 0:00:12]} Rc8 {[%emt 0:00:37]} 32. Qf1 {[%emt 0:00:50]} Qe3 {[%emt 0:01:03]} 33. Qf2 {[%emt 0:00:26]} Qh6 {[%emt 0:04:04]} 34. Qd2 {[%emt 0:00:30]} Qg7 {[%emt 0:00:15]} 35. Rf1 {[%emt 0:01:19]} Ba5 {[%emt 0:00:50]} 36. d6 {[%emt 0:01:37]} e4 {[%emt 0:00:25]} 37. d7 {[%emt 0:00:40]} Rd8 {[%emt 0:00:03]} 38. Qg5 {[%emt 0:00:51]} f6 {[%emt 0:00:59]} 39. Qe3 {[%emt 0:00:08]} Bxd7 {[%emt 0:00:38]} 40. Nxe4 {[%emt 0:00:44]} Bxb5 {[%emt 0:00:31]} 41. Qb3+ {[%emt 0:06:00]} Kh8 {[%emt 0:00:56]} 42. Qxb5 {[%emt 0:01:04]} Qe7 {[%emt 0:01:29]} 43. Qc6 {[%emt 0:09:31]} f5 {[%emt 0:07:30]} 44. Ng5 {[%emt 0:00:24]} Bb4 {[%emt 0:05:03]} 45. Qxg6 {[%emt 0:02:30]} Rd2+ {[%emt 0:00:36]} 46. Kh3 {[%emt 0:00:18]} Rh2+ {[%emt 0:01:04]} 47. Kxh2 {[%emt 0:00:01]} Qe2+ {[%emt 0:00:05]} 48. Kh1 {[%emt 0:03:33]} Qxf1+ {[%emt 0:00:05]} 49. Kh2 {[%emt 0:00:04]} Qf2+ {[%emt 0:00:04]} 1/2-1/2

[Event "VI Sunway Sitges Open 2019"]
[Site "Sitges"]
[Date "2019.12.19"]
[Round "7.51"]
[White "Nurgaliyev, Sauat"]
[Black "Rosh Jain"]
[Result "0-1"]
[ECO "E07"]
[WhiteElo "1850"]
[BlackElo "1697"]
[Annotator "NA"]
[PlyCount "142"]
[EventDate "2019.12.13"]
[EventType "swiss"]
[EventCountry "ESP"]
[SourceTitle "playchess.com"]
[Source "ChessBase"]
[SourceQuality "1"]
[TimeControl "40/5400+30:1800+30"]

1. d4 {[%emt 0:00:39]} Nf6 {[%emt 0:00:00]} 2. Nf3 {[%emt 0:00:14]} e6 {[%emt 0:00:34]} 3. g3 {[%emt 0:00:03]} d5 {[%emt 0:00:15]} 4. Bg2 {[%emt 0:00:09]} Be7 {[%emt 0:00:32]} 5. O-O {[%emt 0:00:20]} O-O {[%emt 0:01:30]} 6. c4 {[%emt 0:00:44]} Nbd7 {[%emt 0:03:07]} 7. cxd5 {[%emt 0:09:03]} exd5 {[%emt 0:00:28]} 8. Nc3 {[%emt 0:00:22]} c6 {[%emt 0:04:01]} 9. Qc2 {[%emt 0:03:07]} Nb6 {[%emt 0:02:47]} 10. Bf4 {[%emt 0:04:02]} Bd7 {[%emt 0:03:16]} 11. Ne5 {[%emt 0:04:09]} Be6 {[%emt 0:02:33]} 12. Rfd1 {[%emt 0:05:06]} Rc8 {[%emt 0:04:02]} 13. a3 {[%emt 0:04:51]} c5 {[%emt 0:03:41]} 14. dxc5 {[%emt 0:03:42]} Bxc5 {[%emt 0:02:08]} 15. Qd3 {[%emt 0:06:51]} Qe7 {[%emt 0:09:17]} 16. Nf3 {[%emt 0:12:06]} h6 {[%emt 0:11:15]} 17. Nb5 {[%emt 0:03:20]} Nc4 {[%emt 0:03:32]} 18. Rab1 {[%emt 0:04:25]} Nh5 {[%emt 0:09:55]} 19. Bc1 {[%emt 0:07:09]} Rfe8 {[%emt 0:06:20]} 20. Nc3 {[%emt 0:08:41]} Rcd8 {[%emt 0:03:46]} 21. Nd4 {[%emt 0:00:57]} Ne5 {[%emt 0:02:56]} 22. Qc2 {[%emt 0:02:36]} Bb6 {[%emt 0:02:19]} 23. Nxe6 {[%emt 0:04:13]} fxe6 {[%emt 0:01:11]} 24. e3 {[%emt 0:00:45]} Rf8 {[%emt 0:01:45]} 25. Qe2 {[%emt 0:02:06]} Nf6 {[%emt 0:01:50]} 26. h3 {[%emt 0:00:45]} Nc6 {[%emt 0:01:13]} 27. b3 {[%emt 0:01:14]} d4 {[%emt 0:02:51]} 28. exd4 {[%emt 0:02:05]} Nxd4 {[%emt 0:02:40]} 29. Qa2 {[%emt 0:02:41]} Nh5 {[%emt 0:07:55]} 30. Ne4 {[%emt 0:05:14]} Nf3+ {[%emt 0:01:23]} 31. Bxf3 {[%emt 0:00:13]} Rxf3 {[%emt 0:00:18]} 32. Qe2 {[%emt 0:03:05]} Rxd1+ {[%emt 0:00:24]} 33. Qxd1 {[%emt 0:00:01]} Qf7 {[%emt 0:00:51]} 34. Rb2 {[%emt 0:01:27]} Nxg3 {[%emt 0:00:48]} 35. Nxg3 {[%emt 0:00:28]} Rxg3+ {[%emt 0:00:12]} 36. Kh2 {[%emt 0:00:17]} Rf3 {[%emt 0:00:19]} 37. Be3 {[%emt 0:00:49]} Bxe3 {[%emt 0:00:52]} 38. Qd8+ {[%emt 0:00:08]} Qf8 {[%emt 0:00:59]} 39. Qxf8+ {[%emt 0:00:06]} Kxf8 {[%emt 0:00:17]} 40. fxe3 {[%emt 0:00:00]} Rxe3 {[%emt 0:00:00]} 41. a4 {[%emt 0:00:21]} Ke7 {[%emt 0:00:51]} 42. b4 {[%emt 0:00:14]} Rc3 {[%emt 0:00:26]} 43. Kg2 {[%emt 0:00:17]} e5 {[%emt 0:00:13]} 44. a5 {[%emt 0:00:51]} Rc4 {[%emt 0:00:55]} 45. b5 {[%emt 0:00:08]} Rc5 {[%emt 0:00:09]} 46. Kf3 {[%emt 0:00:16]} Ke6 {[%emt 0:00:28]} 47. Rb3 {[%emt 0:00:35]} Kf5 {[%emt 0:00:51]} 48. Ke3 {[%emt 0:00:26]} g5 {[%emt 0:00:25]} 49. Kf3 {[%emt 0:00:24]} h5 {[%emt 0:00:43]} 50. Ke3 {[%emt 0:01:05]} Rd5 {[%emt 0:01:17]} 51. Rb4 {[%emt 0:01:00]} Rc5 {[%emt 0:01:08]} 52. Rb3 {[%emt 0:00:09]} g4 {[%emt 0:00:32]} 53. hxg4+ {[%emt 0:00:18]} hxg4 {[%emt 0:00:06]} 54. Rb4 {[%emt 0:00:12]} Rd5 {[%emt 0:00:39]} 55. Rb3 {[%emt 0:00:34]} e4 {[%emt 0:00:52]} 56. Rb4 {[%emt 0:00:04]} Rd3+ {[%emt 0:00:53]} 57. Ke2 {[%emt 0:00:08]} Kf4 {[%emt 0:00:14]} 58. Rb2 {[%emt 0:00:11]} Ra3 {[%emt 0:00:28]} 59. a6 {[%emt 0:00:49]} bxa6 {[%emt 0:00:11]} 60. bxa6 {[%emt 0:00:06]} Rxa6 {[%emt 0:00:08]} 61. Rb7 {[%emt 0:00:15]} Ra2+ {[%emt 0:00:08]} 62. Ke1 {[%emt 0:00:04]} a5 {[%emt 0:00:27]} 63. Rf7+ {[%emt 0:00:12]} Ke3 {[%emt 0:00:18]} 64. Kf1 {[%emt 0:00:08]} a4 {[%emt 0:00:22]} 65. Ra7 {[%emt 0:00:12]} a3 {[%emt 0:00:08]} 66. Kg1 {[%emt 0:00:06]} Kf3 {[%emt 0:00:15]} 67. Rf7+ {[%emt 0:00:16]} Kg3 {[%emt 0:00:13]} 68. Kf1 {[%emt 0:00:08]} Rb2 {[%emt 0:00:33]} 69. Ra7 {[%emt 0:00:05]} a2 {[%emt 0:00:23]} 70. Ra3+ {[%emt 0:00:27]} Kf4 {[%emt 0:00:16]} 71. Ra4 {[%emt 0:00:06]} Kf3 {[%emt 0:01:06]} 0-1

[Event "VI Sunway Sitges Open 2019"]
[Site "Sitges"]
[Date "2019.12.19"]
[Round "7.52"]
[White "Dias, Savin"]
[Black "Parals Marce, Luis"]
[Result "0-1"]
[ECO "C41"]
[WhiteElo "1921"]
[BlackElo "2063"]
[Annotator "NA"]
[PlyCount "112"]
[EventDate "2019.12.13"]
[EventType "swiss"]
[EventCountry "ESP"]
[SourceTitle "playchess.com"]
[Source "ChessBase"]
[SourceQuality "1"]
[TimeControl "40/5400+30:1800+30"]

1. e4 {[%emt 0:04:55]} d6 {[%emt 0:00:56]} 2. d4 {[%emt 0:00:36]} Nf6 {[%emt 0:00:10]} 3. Nc3 {[%emt 0:00:02]} e5 {[%emt 0:00:23]} 4. Nf3 {[%emt 0:00:35]} Nbd7 {[%emt 0:00:20]} 5. Bc4 {[%emt 0:00:07]} Be7 {[%emt 0:00:10]} 6. O-O {[%emt 0:00:06]} O-O {[%emt 0:00:29]} 7. Re1 {[%emt 0:00:05]} c6 {[%emt 0:00:54]} 8. a4 {[%emt 0:00:05]} a5 {[%emt 0:00:34]} 9. h3 {[%emt 0:00:40]} Nb6 {[%emt 0:06:53]} 10. Bb3 {[%emt 0:00:32]} exd4 {[%emt 0:00:49]} 11. Nxd4 {[%emt 0:00:20]} Nfd7 {[%emt 0:00:22]} 12. Nf5 {[%emt 0:06:27]} Nc5 {[%emt 0:02:18]} 13. Nxe7+ {[%emt 0:02:32]} Qxe7 {[%emt 0:00:09]} 14. Bf4 {[%emt 0:01:51]} Rd8 {[%emt 0:01:18]} 15. Ba2 {[%emt 0:01:23]} Be6 {[%emt 0:00:14]} 16. Bxe6 {[%emt 0:00:45]} fxe6 {[%emt 0:04:33]} 17. Qg4 {[%emt 0:02:14]} Rf8 {[%emt 0:04:44]} 18. Rad1 {[%emt 0:07:24]} e5 {[%emt 0:05:24]} 19. Bg5 {[%emt 0:01:09]} Qf7 {[%emt 0:01:28]} 20. Be3 {[%emt 0:01:13]} Nc4 {[%emt 0:13:39]} 21. Bxc5 {[%emt 0:03:49]} dxc5 {[%emt 0:00:11]} 22. Rf1 {[%emt 0:02:55]} h5 {[%emt 0:06:35]} 23. Qd7 {[%emt 0:03:09]} Nxb2 {[%emt 0:00:51]} 24. Qxf7+ {[%emt 0:02:42]} Rxf7 {[%emt 0:00:15]} 25. Rb1 {[%emt 0:00:31]} Nc4 {[%emt 0:00:21]} 26. Rfd1 {[%emt 0:00:27]} Kf8 {[%emt 0:12:29]} 27. Rb3 {[%emt 0:06:17]} Ke8 {[%emt 0:01:38]} 28. Ne2 {[%emt 0:03:21]} Rd8 {[%emt 0:01:22]} 29. Rxd8+ {[%emt 0:06:08]} Kxd8 {[%emt 0:00:11]} 30. Ng3 {[%emt 0:02:33]} g6 {[%emt 0:00:24]} 31. Rc3 {[%emt 0:02:09]} b5 {[%emt 0:00:12]} 32. h4 {[%emt 0:16:54]} Kc7 {[%emt 0:02:04]} 33. Kf1 {[%emt 0:00:41]} Kb6 {[%emt 0:00:22]} 34. Rd3 {[%emt 0:03:12]} bxa4 {[%emt 0:00:26]} 35. Ne2 {[%emt 0:00:19]} Rf6 {[%emt 0:01:19]} 36. Nc3 {[%emt 0:00:58]} a3 {[%emt 0:00:25]} 37. Na4+ {[%emt 0:01:10]} Kb5 {[%emt 0:00:25]} 38. Nc3+ {[%emt 0:00:04]} Ka6 {[%emt 0:00:32]} 39. Ke2 {[%emt 0:00:30]} Nb2 {[%emt 0:06:20]} 40. Rd8 {[%emt 0:00:00]} Nc4 {[%emt 0:00:00]} 41. Rd7 {[%emt 0:03:43]} Nd6 {[%emt 0:07:27]} 42. f3 {[%emt 0:00:56]} Nb5 {[%emt 0:00:20]} 43. Na4 {[%emt 0:04:54]} Nd4+ {[%emt 0:03:41]} 44. Kd3 {[%emt 0:00:32]} a2 {[%emt 0:00:40]} 45. Kc4 {[%emt 0:00:34]} Ne6 {[%emt 0:05:27]} 46. Rd1 {[%emt 0:00:28]} Rf8 {[%emt 0:03:58]} 47. Ra1 {[%emt 0:01:32]} Rb8 {[%emt 0:02:43]} 48. Nxc5+ {[%emt 0:01:08]} Nxc5 {[%emt 0:00:08]} 49. Kxc5 {[%emt 0:00:04]} Rb2 {[%emt 0:00:36]} 50. c4 {[%emt 0:00:08]} Rxg2 {[%emt 0:05:10]} 51. Kxc6 {[%emt 0:00:23]} g5 {[%emt 0:00:59]} 52. hxg5 {[%emt 0:03:05]} h4 {[%emt 0:03:02]} 53. Rd1 {[%emt 0:03:53]} Rxg5 {[%emt 0:01:04]} 54. Kd6 {[%emt 0:02:18]} h3 {[%emt 0:02:23]} 55. c5 {[%emt 0:00:09]} h2 {[%emt 0:00:22]} 56. c6 {[%emt 0:00:02]} Rg1 {[%emt 0:00:30]} 0-1

[Event "VI Sunway Sitges Open 2019"]
[Site "Sitges"]
[Date "2019.12.19"]
[Round "7.53"]
[White "Dew, Brian"]
[Black "Svergina, Sofya"]
[Result "1-0"]
[ECO "B86"]
[WhiteElo "2054"]
[BlackElo "1849"]
[Annotator "NA"]
[PlyCount "63"]
[EventDate "2019.12.13"]
[EventType "swiss"]
[EventCountry "ESP"]
[SourceTitle "playchess.com"]
[Source "ChessBase"]
[SourceQuality "1"]
[TimeControl "40/5400+30:1800+30"]

1. e4 {[%emt 2:30:25]} c5 {[%emt 0:00:22]} 2. Nf3 {[%emt 0:00:17]} d6 {[%emt 0:00:12]} 3. d4 {[%emt 0:00:12]} cxd4 {[%emt 0:00:09]} 4. Nxd4 {[%emt 0:00:06]} Nf6 {[%emt 0:00:07]} 5. Nc3 {[%emt 0:00:07]} a6 {[%emt 0:00:06]} 6. Bc4 {[%emt 0:00:32]} e6 {[%emt 0:00:07]} 7. Bb3 {[%emt 0:00:19]} Nbd7 {[%emt 0:00:09]} 8. f4 {[%emt 0:00:47]} Nc5 {[%emt 0:01:20]} 9. f5 {[%emt 0:01:05]} exf5 {[%emt 0:07:07]} 10. exf5 {[%emt 0:08:02]} Be7 {[%emt 0:01:30]} 11. O-O {[%emt 0:01:04]} O-O {[%emt 0:00:15]} 12. Qf3 {[%emt 0:05:17]} Ncd7 {[%emt 0:03:21]} 13. Kh1 {[%emt 0:02:38]} Ne5 {[%emt 0:01:45]} 14. Qg3 {[%emt 0:02:15]} Kh8 {[%emt 0:06:25]} 15. Nf3 {[%emt 0:06:10]} Nxf3 {[%emt 0:03:47]} 16. Qxf3 {[%emt 0:00:24]} Rb8 {[%emt 0:01:11]} 17. Nd5 {[%emt 0:08:45]} Nxd5 {[%emt 0:02:01]} 18. Bxd5 {[%emt 0:00:19]} Bf6 {[%emt 0:03:03]} 19. Qb3 {[%emt 0:04:51]} Qc7 {[%emt 0:03:55]} 20. Be3 {[%emt 0:10:42]} b5 {[%emt 0:00:42]} 21. Rad1 {[%emt 0:01:29]} Bb7 {[%emt 0:05:21]} 22. Bxb7 {[%emt 0:00:45]} Rxb7 {[%emt 0:00:12]} 23. Bd4 {[%emt 0:00:31]} Bxd4 {[%emt 0:01:45]} 24. Rxd4 {[%emt 0:00:02]} Qe7 {[%emt 0:04:43]} 25. Qd3 {[%emt 0:15:05]} Rb6 {[%emt 0:04:39]} 26. f6 {[%emt 0:06:14]} Qe5 {[%emt 0:08:11]} 27. Rd5 {[%emt 0:08:34]} Qxb2 {[%emt 0:10:34]} 28. Rh5 {[%emt 0:02:32]} h6 {[%emt 0:00:36]} 29. Qe3 {[%emt 0:01:15]} Kh7 {[%emt 0:21:04]} 30. fxg7 {[%emt 0:03:26]} Qxg7 {[%emt 0:01:06]} 31. Qxb6 {[%emt 0:00:20]} Qg4 {[%emt 0:01:02]} 32. Rhf5 {[%emt 0:00:49]} 1-0

[Event "VI Sunway Sitges Open 2019"]
[Site "Sitges"]
[Date "2019.12.19"]
[Round "7.54"]
[White "Sai Alagappan S"]
[Black "Rathina Sabapathi A"]
[Result "1/2-1/2"]
[ECO "B15"]
[WhiteElo "1591"]
[BlackElo "1759"]
[Annotator "NA"]
[PlyCount "48"]
[EventDate "2019.12.13"]
[EventType "swiss"]
[EventCountry "ESP"]
[SourceTitle "playchess.com"]
[Source "ChessBase"]
[SourceQuality "1"]
[TimeControl "40/5400+30:1800+30"]

1. e4 {[%emt 0:00:58]} c6 {[%emt 0:00:00]} 2. Nf3 {[%emt 0:00:37]} d5 {[%emt 0:00:56]} 3. Nc3 {[%emt 0:07:50]} dxe4 {[%emt 0:01:40]} 4. Nxe4 {[%emt 0:01:04]} Nf6 {[%emt 0:01:30]} 5. Nxf6+ {[%emt 0:00:27]} exf6 {[%emt 0:00:00]} 6. d4 {[%emt 0:07:27]} Bd6 {[%emt 0:00:00]} 7. Bd3 {[%emt 0:00:30]} O-O {[%emt 0:00:02]} 8. O-O {[%emt 0:03:11]} Bg4 {[%emt 0:06:35]} 9. Re1 {[%emt 0:04:12]} Bc7 {[%emt 0:04:40]} 10. c3 {[%emt 0:03:54]} Qd6 {[%emt 0:00:00]} 11. g3 {[%emt 0:00:46]} Qd5 {[%emt 0:00:00]} 12. Be2 {[%emt 0:11:57]} Re8 {[%emt 0:14:43]} 13. Bc4 {[%emt 0:08:01]} Qd7 {[%emt 0:09:14]} 14. Qb3 {[%emt 0:19:18]} Rxe1+ {[%emt 0:00:00]} 15. Nxe1 {[%emt 0:06:15]} b6 {[%emt 0:00:00]} 16. Bf1 {[%emt 0:07:42]} Bh3 {[%emt 0:00:00]} 17. Be2 {[%emt 0:00:00]} Bg4 {[%emt 0:01:22]} 18. Bf1 {[%emt 0:02:22]} Bh3 {[%emt 0:06:44]} 19. Be2 {[%emt 0:00:00]} Qe7 {[%emt 0:04:33]} 20. Be3 {[%emt 0:00:00]} Be6 {[%emt 0:03:12]} 21. Qc2 {[%emt 0:00:00]} Bh3 {[%emt 0:00:08]} 22. Qb3 {[%emt 0:00:00]} Be6 {[%emt 0:00:10]} 23. Qc2 {[%emt 0:00:00]} Bh3 {[%emt 0:00:06]} 24. Qb3 {[%emt 0:00:00]} Be6 {[%emt 0:00:04]} 1/2-1/2